bitfinex/quotes_ETHUSD_20240916
["timestamp","ask_amount","ask_price","bid_price","bid_amount"]
[1726500073609,0.59616192,2296.1,2295.7,3.0]
[1726500073780,2.354,2296.0,2295.7,3.0]
[1726500074288,2.354,2296.2,2295.9,4.35546]
[1726500074924,2.354,2296.2,2295.9,8.71094]
[1726500075204,2.354,2296.2,2295.9,4.35546]
[1726500075564,3.40990364,2296.5,2296.1,4.35521]
[1726500075902,2.4962,2296.5,2296.2,4.35494]
[1726500076104,2.4962,2296.5,2296.1,4.3551]
[1726500076311,2.4962,2296.5,2296.0,0.0870976]
[1726500076610,2.4962,2296.5,2296.3,4.35482]
[1726500076964,2.4962,2296.5,2295.9,0.435546]
[1726500076965,2.4962,2296.5,2295.9,4.35557]
[1726500077208,2.4962,2296.5,2295.9,4.35548]
[1726500077209,2.3806,2296.4,2295.9,4.35548]
[1726500077392,3.54392364,2296.4,2295.9,8.71096]
[1726500077907,2.63022,2296.4,2296.0,4.35534]
[1726500078286,2.3806,2296.4,2296.0,0.08710561]
[1726500078486,2.3806,2296.4,2296.1,4.3551]
[1726500078791,2.3806,2296.4,2296.0,4.35539]
[1726500078792,2.3806,2296.4,2296.0,4.3553]
[1726500079012,2.3806,2296.4,2296.2,4.35501]
[1726500080077,2.3806,2296.4,2296.0,4.35521]
[1726500080277,2.3806,2296.4,2296.1,4.35508]
[1726500080510,2.3806,2296.4,2296.2,4.35501]
[1726500081614,2.3806,2296.4,2296.3,4.35483]
[1726500081818,0.04,2296.5,2296.4,4.35464]
[1726500083429,0.04,2296.6,2296.5,4.35445]
[1726500083727,0.04,2296.6,2296.5,9.579809]
[1726500083931,0.04,2296.6,2296.5,8.7089]
[1726500084437,0.04,2296.6,2296.5,11.7089]
[1726500085531,0.0740588,2296.8,2296.6,4.35411]
[1726500085734,0.0740588,2296.8,2296.5,3.0]
[1726500085735,0.0740588,2296.8,2296.5,4.35442]
[1726500086287,2.4296,2296.7,2296.5,4.35442]
[1726500086529,2.67996588,2296.7,2296.2,7.35485]
[1726500086734,2.67996588,2296.7,2296.2,11.70976]
[1726500086916,2.67996588,2296.7,2296.3,4.4634657]
[1726500088428,2.4296,2296.7,2296.4,4.35463]
[1726500088625,2.4296,2296.7,2296.5,0.10506627]
[1726500088838,2.4296,2296.7,2296.5,4.45942627]
[1726500089200,2.4296,2296.7,2296.5,0.10506627]
[1726500091204,3.34410676,2296.7,2296.2,4.35485]
[1726500091503,4.35429,2296.6,2296.3,0.10167645]
[1726500091730,2.4403,2296.5,2296.3,0.10167645]
[1726500091930,2.4403,2296.5,2296.0,4.35525]
[1726500092138,2.4403,2296.5,2296.4,0.10168269]
[1726500092322,2.4403,2296.5,2296.0,4.35525]
[1726500092650,2.4403,2296.5,2296.1,0.10172395]
[1726500092651,8.22926868,2296.5,2296.1,0.10172395]
[1726500092851,4.306809,2296.4,2296.1,0.10172395]
[1726500093018,2.4226,2296.3,2296.1,0.10172395]
[1726500093217,2.4226,2296.3,2295.8,4.35567]
[1726500093545,2.4226,2296.3,2295.9,4.45730573]
[1726500093741,2.4226,2296.3,2296.1,4.35509]
[1726500093906,2.4226,2296.3,2296.2,4.35502]
[1726500094103,3.33630364,2296.6,2296.2,0.10191016]
[1726500094306,3.33630364,2296.6,2296.3,4.35472]
[1726500094545,3.33630364,2296.6,2296.4,4.35462]
[1726500094546,2.4226,2296.6,2296.4,4.35462]
[1726500094749,2.4226,2296.6,2296.4,0.10188837]
[1726500096429,2.4226,2296.6,2296.3,4.35481]
[1726500096606,2.4226,2296.6,2296.4,0.10188837]
[1726500097145,2.4226,2296.6,2296.4,0.10188837]
[1726500097609,2.4226,2296.6,2296.4,4.45647837]
[1726500098048,2.4226,2296.6,2296.4,0.10188837]
[1726500098756,2.2955,2296.5,2296.4,0.10188837]
[1726500098916,2.2955,2296.3,2295.9,4.3555]
[1726500099114,2.2955,2296.3,2296.0,4.35539]
[1726500100035,2.2955,2296.3,2295.9,4.35549]
[1726500100234,2.2955,2296.3,2296.0,4.35529]
[1726500101635,2.2955,2296.3,2296.1,0.10174107]
[1726500102932,2.2955,2296.3,2295.9,8.71098]
[1726500103134,2.2955,2296.3,2296.2,0.10173017]
[1726500103366,2.2955,2296.3,2295.9,4.35548]
[1726500103660,6.50465045,2296.6,2296.5,4.35445]
[1726500103661,0.04,2296.6,2296.5,4.35445]
[1726500103902,0.04,2296.7,2296.6,4.35426]
[1726500104251,0.04,2296.7,2296.6,4.45606659]
[1726500104675,0.0740588,2296.8,2296.7,8.70814]
[1726500105053,0.0740588,2296.8,2296.7,8.8099357]
[1726500105563,0.8871879,2297.0,2296.9,8.70738]
[1726500105894,2.3136,2297.3,2297.1,4.35331]
[1726500106253,2.3136,2297.3,2297.2,0.10132997]
[1726500106495,3.36119572,2297.3,2297.2,4.45444997]
[1726500106861,3.36119572,2297.3,2297.2,0.10132997]
[1726500107366,3.36119572,2297.3,2296.9,4.35354]
[1726500107367,5.39558266,2297.3,2296.9,4.35354]
[1726500107584,1.04759572,2297.2,2297.0,0.09706442]
[1726500108176,1.04759572,2297.2,2296.9,4.35351]
[1726500108396,1.04759572,2297.2,2297.0,0.09706442]
[1726500108768,7.93258995,2297.2,2297.0,0.09706442]
[1726500108981,1.04759572,2297.1,2296.7,4.35392]
[1726500109161,1.04759572,2297.1,2296.8,0.0970862]
[1726500109366,1.04759572,2297.1,2296.7,4.35392]
[1726500109592,1.04759572,2297.1,2296.8,0.0970862]
[1726500109794,2.4593,2297.0,2296.7,4.35392]
[1726500109954,2.4593,2297.0,2296.8,0.0970862]
[1726500110159,5.40164749,2296.9,2296.3,4.3547]
[1726500110392,3.43731347,2296.8,2296.4,0.09712978]
[1726500110700,1.04821347,2296.7,2296.4,0.09712978]
[1726500110865,2.42217868,2296.7,2296.4,0.09712978]
[1726500111064,3.76306521,2296.8,2296.5,4.35435]
[1726500111268,2.3891,2296.8,2296.6,4.79931798]
[1726500111513,2.3891,2296.8,2296.6,0.09710799]
[1726500112452,1.04878915,2296.7,2296.6,0.09710799]
[1726500112626,2.3891,2296.8,2296.6,0.09710799]
[1726500112933,1.04877861,2296.7,2296.6,4.45119799]
[1726500113137,2.3891,2296.8,2296.6,4.45119799]
[1726500113496,1.37396521,2296.9,2296.6,4.45119799]
[1726500113728,1.0489561,2296.8,2296.6,4.45119799]
[1726500113936,1.37396521,2296.9,2296.6,4.45119799]
[1726500114096,1.04897395,2296.8,2296.6,4.45119799]
[1726500114292,1.37396521,2296.9,2296.6,4.45119799]
[1726500114494,1.37396521,2296.9,2296.7,5.2346238]
[1726500114495,1.04899672,2296.8,2296.7,5.2346238]
[1726500114721,1.37396521,2297.1,2297.0,4.3535]
[1726500114932,2.42284892,2297.1,2297.0,9.577719]
[1726500115157,2.42284892,2297.1,2297.0,8.80406442]
[1726500115158,1.04888371,2297.1,2297.0,8.80406442]
[1726500115538,1.96228036,2297.1,2297.0,8.80406442]
[1726500115738,1.96228036,2297.1,2297.0,9.68447086]
[1726500116168,1.96228528,2297.1,2297.0,5.33097086]
[1726500116383,1.96228528,2297.1,2297.0,4.45056442]
[1726500116732,1.96228528,2297.1,2297.0,0.09706442]
[1726500116973,1.96228528,2297.1,2297.0,4.45056442]
[1726500117132,1.96228528,2297.1,2297.0,4.3535]
[1726500117334,1.96217473,2297.1,2297.0,4.45058152]
[1726500118229,1.37396521,2297.2,2297.1,8.70662]
[1726500118428,0.91314414,2297.2,2297.1,4.45038063]
[1726500118667,1.37396521,2297.2,2297.1,0.09707063]
[1726500118871,1.37396521,2297.2,2297.1,4.45038063]
[1726500119165,1.37396521,2297.2,2297.1,0.09707063]
[1726500119377,2.42266971,2297.2,2297.1,4.45038063]
[1726500119545,1.96188089,2297.2,2297.1,9.68407869]
[1726500119750,0.91317639,2297.3,2297.2,4.35312]
[1726500120051,0.91317639,2297.3,2297.2,4.45021392]
[1726500120231,1.96179819,2297.3,2297.2,4.45021392]
[1726500120433,1.96184166,2297.3,2297.2,9.92154631]
[1726500120637,1.96184166,2297.3,2297.2,0.09709392]
[1726500120864,1.96184166,2297.3,2297.2,4.45021392]
[1726500121168,1.96184166,2297.3,2297.2,8.80333392]
[1726500121413,0.91317639,2297.4,2297.3,8.70586]
[1726500121733,0.95148519,2297.5,2297.4,8.70548]
[1726500122138,0.0383088,2297.5,2297.4,8.80255215]
[1726500122362,0.0383088,2297.5,2297.4,10.5189049]
[1726500122971,0.0383088,2297.5,2297.4,17.3655449]
[1726500124194,0.0383088,2297.5,2297.4,25.2682849]
[1726500124555,0.0383088,2297.5,2297.4,20.3655449]
[1726500125097,0.0383088,2298.2,2298.1,8.70284]
[1726500125389,0.0383088,2298.2,2298.1,8.79983597]
[1726500126857,0.0383088,2298.2,2298.1,4.44841597]
[1726500127685,0.0383088,2298.2,2298.1,0.09699597]
[1726500128051,2.3468088,2298.2,2298.1,0.09699597]
[1726500128267,2.3468088,2298.2,2297.6,4.35223]
[1726500128591,2.3468088,2298.2,2297.8,4.35197]
[1726500128947,2.3468088,2298.2,2297.9,4.4476139]
[1726500129152,2.3468088,2298.2,2298.0,4.35159]
[1726500129383,0.0383088,2298.2,2298.1,4.44642475]
[1726500129690,0.0383088,2298.2,2298.1,4.90065962]
[1726500130994,0.0383088,2298.2,2298.1,9.25207962]
[1726500131156,0.0383088,2298.2,2298.1,4.90065962]
[1726500131599,0.0383088,2298.2,2298.1,0.09500475]
[1726500133961,0.0383088,2298.2,2297.9,4.35173]
[1726500134193,0.0383088,2298.2,2298.0,4.44661563]
[1726500134692,0.0383088,2298.2,2298.0,4.44653563]
[1726500134893,0.0383088,2298.2,2298.1,4.35142]
[1726500135096,0.0383088,2298.2,2298.1,8.70284]
[1726500135302,0.0383088,2298.2,2298.1,8.79780427]
[1726500135665,0.0383088,2298.2,2298.1,11.05000427]
[1726500136061,0.0383088,2298.2,2298.1,15.40142427]
[1726500136376,0.0383088,2298.2,2298.1,16.98603205]
[1726500136683,0.0383088,2298.2,2298.1,12.63461205]
[1726500138788,0.0383088,2298.2,2298.1,15.63461205]
[1726500139319,0.0383088,2298.2,2298.1,19.98603205]
[1726500139471,0.0383088,2298.2,2298.1,15.63461205]
[1726500139868,0.0383088,2298.2,2298.1,19.98603205]
[1726500141387,0.0383088,2298.2,2298.1,29.23887205]
[1726500141579,0.0383088,2298.2,2298.1,29.67577205]
[1726500142714,0.0383088,2298.2,2298.1,24.88745205]
[1726500143223,0.0383088,2298.2,2298.1,12.63461205]
[1726500143424,0.0383088,2298.2,2298.1,8.79780427]
[1726500145379,0.0383088,2298.2,2298.1,0.09496427]
[1726500145577,0.0383088,2298.2,2298.0,4.35158]
[1726500145984,0.0383088,2298.2,2298.1,0.08389027]
[1726500146627,0.0383088,2298.2,2297.9,8.70336]
[1726500146925,0.0383088,2298.2,2298.0,4.43549115]
[1726500149996,0.0383088,2298.2,2298.1,4.43844878]
[1726500150228,0.0383088,2298.2,2298.1,8.78673027]
[1726500152235,0.0383088,2298.2,2298.1,4.43531027]
[1726500152720,2.3153088,2298.2,2298.1,0.08389027]
[1726500153097,2.3153088,2298.2,2298.1,4.43531027]
[1726500153920,2.3153088,2298.2,2298.1,0.08389027]
[1726500156849,0.0383088,2298.2,2298.1,4.43531027]
[1726500157227,0.0383088,2298.2,2298.1,8.78673027]
[1726500157668,0.0383088,2298.2,2298.1,9.6654033]
[1726500159865,0.0383088,2298.2,2298.1,17.0168233]
[1726500160164,0.0383088,2298.2,2298.1,12.6654033]
[1726500160468,0.0383088,2298.2,2298.1,4.43531027]
[1726500161038,0.0383088,2298.2,2298.1,8.78673027]
[1726500165672,2.4716088,2298.2,2298.1,0.08389027]
[1726500166238,2.4716088,2298.2,2298.1,4.43531027]
[1726500166842,2.4716088,2298.2,2298.1,0.08389027]
[1726500167060,5.37393302,2298.2,2298.1,0.08389027]
[1726500167265,2.4333,2297.9,2297.5,4.35246]
[1726500167484,3.34637594,2297.9,2297.6,0.07707801]
[1726500167774,0.91307594,2297.7,2297.4,4.35263]
[1726500168167,0.91307594,2297.7,2297.6,4.35236]
[1726500168349,0.91307594,2297.8,2297.6,4.35236]
[1726500168557,1.96629515,2297.8,2297.6,4.42943801]
[1726500168738,0.91307594,2297.7,2297.6,4.42943801]
[1726500169759,0.91307594,2297.7,2297.6,0.07707801]
[1726500171464,1.96629515,2297.8,2297.6,0.07707801]
[1726500171722,1.96608406,2297.7,2297.6,0.07707801]
[1726500172249,1.96612217,2297.7,2297.6,4.42943801]
[1726500172550,0.91307594,2297.8,2297.6,4.42943801]
[1726500172722,1.96595811,2297.8,2297.6,0.07707801]
[1726500172882,1.96595811,2297.8,2297.6,4.42943801]
[1726500173287,0.91307594,2297.7,2297.6,4.42943801]
[1726500173527,0.91307594,2297.8,2297.6,4.42943801]
[1726500173701,1.96581855,2297.8,2297.6,4.42943801]
[1726500174291,1.96581855,2297.8,2297.6,4.42933801]
[1726500175310,1.96581855,2297.8,2297.7,8.70434]
[1726500175516,0.91307594,2297.9,2297.8,8.70396]
[1726500175846,0.91307594,2297.9,2297.8,8.78199716]
[1726500175847,1.96553517,2297.9,2297.8,8.78199716]
[1726500176139,3.20287594,2298.0,2297.9,4.35179]
[1726500176300,4.25532249,2298.0,2297.9,4.35179]
[1726500176496,4.25532249,2298.0,2297.9,0.07802628]
[1726500176700,4.25532249,2298.0,2297.9,4.35179]
[1726500177536,4.25521759,2298.0,2297.9,4.35179]
[1726500178461,4.25521759,2298.0,2297.8,8.70377]
[1726500178611,3.20287594,2298.0,2297.9,0.07786419]
[1726500178816,4.25518858,2298.0,2297.9,0.07786419]
[1726500179193,4.71172655,2298.0,2297.7,4.35216]
[1726500179453,1.05231494,2297.9,2297.8,0.07785801]
[1726500179656,2.2953,2297.8,2297.4,8.7052]
[1726500179855,3.20816922,2297.8,2297.4,8.7052]
[1726500180023,3.20816922,2297.8,2297.4,4.35259]
[1726500180362,7.56016922,2297.8,2297.4,4.35259]
[1726500180659,1.96525147,2297.7,2297.4,4.35259]
[1726500180859,0.91286922,2297.7,2297.4,4.35271]
[1726500181154,0.91286922,2297.6,2297.3,11.75284]
[1726500181359,2.42207243,2297.7,2297.3,11.75284]
[1726500181360,0.91282355,2297.7,2297.5,4.35255]
[1726500181654,0.91282355,2297.7,2297.3,7.4]
[1726500181655,0.91282355,2297.6,2297.3,7.4]
[1726500181859,2.4252,2297.5,2297.2,4.35297]
[1726500182050,1.96519528,2297.4,2297.2,4.35297]
[1726500182218,1.96519528,2297.4,2297.0,4.3534]
[1726500182416,2.4179,2297.3,2297.0,4.35336]
[1726500182656,2.4179,2297.3,2297.1,4.35326]
[1726500182827,6.77087,2297.3,2296.8,4.35371]
[1726500183048,6.77087,2297.3,2296.0,14.23351909]
[1726500183049,2.4179,2297.0,2296.2,4.35499]
[1726500183281,2.4179,2297.0,2296.7,4.35388]
[1726500183466,2.4179,2297.0,2296.7,8.70783]
[1726500183663,6.77153,2297.0,2296.5,4.35431]
[1726500183868,8.5897173,2297.0,2296.5,4.35431]
[1726500184085,3.29022355,2296.7,2296.2,4.35499]
[1726500184269,3.29022355,2296.7,2296.5,4.3544]
[1726500184441,2.3774,2296.7,2296.5,8.70874]
[1726500184640,2.3774,2296.7,2296.5,4.35434]
[1726500184986,2.3774,2296.7,2296.3,4.3547]
[1726500185140,2.3774,2296.7,2296.4,4.35446]
[1726500185657,3.27875775,2296.7,2296.1,4.35508]
[1726500185858,4.35428,2296.6,2296.1,4.35507]
[1726500186187,0.76327478,2296.6,2296.2,4.355]
[1726500186371,6.7315,2296.7,2296.2,4.355]
[1726500186718,2.3774,2296.7,2296.3,4.3547]
[1726500186893,0.673139,2296.6,2296.2,4.355]
[1726500187237,2.3448,2296.5,2296.0,4.35521]
[1726500187442,2.3448,2296.5,2296.1,4.35511]
[1726500187977,2.3448,2296.5,2296.2,4.35501]
[1726500189374,2.3448,2296.5,2296.2,8.70984]
[1726500189581,2.3448,2296.5,2296.2,4.35492]
[1726500189784,2.3448,2296.5,2296.1,4.3552]
[1726500190138,2.4247,2296.4,2295.9,4.35549]
[1726500190341,4.35483,2296.3,2295.9,4.35548]
[1726500190574,2.4247,2296.2,2295.8,4.35568]
[1726500191670,2.4247,2296.2,2295.9,0.08030136]
[1726500192099,6.77972,2296.2,2295.9,0.08030136]
[1726500192282,2.4247,2296.2,2295.8,4.35575]
[1726500192495,2.4247,2296.2,2296.0,0.08029046]
[1726500192679,2.4247,2296.2,2295.8,4.35575]
[1726500192680,3.538147,2296.2,2295.8,4.35575]
[1726500193008,3.538147,2296.2,2296.1,0.08027956]
[1726500193209,3.538147,2296.2,2295.8,4.35575]
[1726500193386,3.538147,2296.2,2296.1,0.08027956]
[1726500194018,3.538147,2296.2,2295.8,4.35575]
[1726500194315,7.893167,2296.2,2295.7,8.71166]
[1726500194516,3.538147,2296.2,2295.9,0.08030136]
[1726500194688,3.538147,2296.2,2295.8,4.43606226]
[1726500195009,3.538147,2296.2,2296.0,0.08029046]
[1726500195315,3.538147,2296.2,2296.1,0.08027956]
[1726500195624,11.83853555,2296.8,2296.3,4.3547]
[1726500195625,2.2816,2296.6,2296.3,4.3547]
[1726500195909,2.2816,2296.6,2296.4,4.43488687]
[1726500196213,2.2816,2296.6,2296.4,0.08024687]
[1726500196906,2.2816,2296.6,2296.5,0.08023597]
[1726500197107,2.2816,2296.6,2296.3,4.35466]
[1726500197412,2.945166,2296.6,2296.5,0.08023597]
[1726500197606,2.945166,2296.6,2296.2,8.70983]
[1726500197607,2.2816,2296.6,2296.4,0.08024687]
[1726500197813,2.2816,2296.6,2296.5,0.08023597]
[1726500198113,2.2816,2296.6,2296.2,8.70981]
[1726500198317,2.2816,2296.6,2296.5,0.08023597]
[1726500198490,2.2816,2296.6,2296.3,4.35477]
[1726500198690,2.2816,2296.6,2296.5,0.08023597]
[1726500198892,2.2816,2296.6,2296.4,4.43483687]
[1726500199078,2.2816,2296.6,2296.5,0.08023597]
[1726500200084,2.2816,2296.6,2296.2,4.355]
[1726500200287,2.945162,2296.6,2296.5,0.08023597]
[1726500200485,2.945162,2296.6,2296.2,4.355]
[1726500200687,2.945162,2296.6,2296.5,0.08063744]
[1726500200928,2.2816,2296.6,2296.4,4.35452]
[1726500201077,11.82318,2297.2,2296.6,4.35415]
[1726500201078,2.4855,2296.8,2296.6,4.35415]
[1726500201279,2.4855,2296.8,2296.7,4.35407]
[1726500201585,2.4855,2296.8,2296.7,4.43486505]
[1726500202208,2.4855,2296.8,2296.7,0.08079505]
[1726500202689,2.4855,2296.8,2296.5,4.35443]
[1726500202893,2.4855,2296.8,2296.6,0.08077177]
[1726500205214,3.169402,2296.8,2296.4,8.70917]
[1726500205518,3.169402,2296.8,2296.7,0.08076087]
[1726500205694,3.169402,2296.8,2296.4,8.70909]
[1726500205895,3.169402,2296.8,2296.5,0.08078266]
[1726500206196,3.169402,2296.8,2296.5,4.43523266]
[1726500206899,3.169402,2296.8,2296.6,4.35423]
[1726500207106,2.4855,2296.8,2296.7,0.08076087]
[1726500209186,2.4855,2296.8,2296.4,4.35462]
[1726500209507,3.169409,2296.8,2296.4,4.35462]
[1726500209685,3.169409,2296.8,2296.5,0.08078266]
[1726500210826,3.169409,2296.8,2296.5,4.43520266]
[1726500210986,3.169409,2296.8,2296.6,4.35415]
[1726500211187,2.4855,2296.8,2296.6,4.35415]
[1726500212222,2.4855,2296.8,2296.7,0.08055587]
[1726500213915,2.4855,2296.8,2296.5,4.35443]
[1726500214116,2.4855,2296.8,2296.7,0.08055587]
[1726500214319,3.0,2297.1,2296.7,4.35407]
[1726500214492,4.19267675,2297.0,2296.8,0.08054498]
[1726500214697,2.4821,2297.0,2296.8,4.43434498]
[1726500215027,2.4821,2297.0,2296.9,4.43399346]
[1726500215233,2.4821,2297.0,2296.9,8.78768346]
[1726500215390,2.2547,2297.2,2297.0,4.35343]
[1726500215915,2.2547,2297.2,2297.1,0.08028168]
[1726500216235,11.15034,2297.2,2297.1,0.08028168]
[1726500216393,16.11491428,2297.2,2297.1,0.08028168]
[1726500216777,16.11491428,2297.2,2296.0,5.4344]
[1726500216778,6.79764,2297.0,2296.5,4.35435]
[1726500217237,4.35371,2296.9,2296.6,0.08006286]
[1726500217392,1.115135,2296.8,2296.6,0.08006286]
[1726500217729,2.4714,2296.7,2296.6,0.08006286]
[1726500218027,2.4714,2296.7,2296.3,4.35472]
[1726500218028,2.4714,2296.7,2296.4,4.35452]
[1726500218233,2.7171535,2296.6,2296.1,4.35505]
[1726500218536,2.3585,2296.5,2296.1,4.35505]
[1726500218738,3.5923397,2296.5,2296.1,4.35505]
[1726500218896,3.5923397,2296.5,2296.1,8.71017]
[1726500219094,3.5923397,2296.5,2296.1,4.35505]
[1726500219496,3.5923397,2296.5,2296.1,8.71017]
[1726500219828,3.5923397,2296.5,2296.1,8.71016]
[1726500220522,3.5923397,2296.5,2296.2,4.35498]
[1726500220725,2.3585,2296.5,2296.2,8.70989]
[1726500221037,2.3585,2296.5,2296.4,4.35464]
[1726500221212,2.251,2296.7,2296.4,5.225571]
[1726500221553,2.251,2296.7,2296.4,4.35464]
[1726500221852,0.91282355,2296.8,2296.5,0.08024495]
[1726500222049,0.91282355,2296.8,2296.5,4.43454495]
[1726500222419,0.91282355,2296.7,2296.5,4.43454495]
[1726500222752,0.91282355,2296.7,2296.5,0.08024495]
[1726500222912,0.91282355,2296.7,2296.5,4.43460495]
[1726500223111,0.91282355,2296.7,2296.6,4.35426]
[1726500223332,1.96693724,2296.7,2296.6,0.08034508]
[1726500223543,1.96598407,2296.7,2296.4,4.35463]
[1726500223747,1.96598407,2296.7,2296.5,4.43476597]
[1726500224047,1.96598407,2296.7,2296.6,4.35426]
[1726500224422,2.4237276,2296.7,2296.6,4.43460508]
[1726500225057,2.4237276,2296.7,2296.6,0.08034508]
[1726500225550,2.88486125,2296.7,2296.6,0.08034508]
[1726500225721,4.29387018,2296.7,2296.6,0.08034508]
[1726500225922,4.29387018,2296.7,2296.6,4.43460508]
[1726500226128,2.46312262,2296.7,2296.6,9.66778859]
[1726500226350,1.96755228,2296.7,2296.6,13.14312508]
[1726500226515,0.91344175,2296.8,2296.6,4.43460508]
[1726500226837,0.91344175,2297.0,2296.9,4.35369]
[1726500227149,0.91344175,2297.1,2297.0,8.707]
[1726500227360,0.91344175,2297.2,2297.1,4.35331]
[1726500227557,1.37021248,2297.2,2297.1,4.43331021]
[1726500227722,2.40771794,2297.2,2297.1,4.43331021]
[1726500228923,2.40771794,2297.2,2297.1,0.08000021]
[1726500229122,2.42091511,2297.2,2297.1,0.08000021]
[1726500229321,4.2517242,2297.2,2297.1,0.08000021]
[1726500230235,4.2517242,2297.2,2296.8,4.35375]
[1726500230430,1.83074756,2297.2,2297.1,0.07961599]
[1726500230764,2.86818631,2297.2,2297.1,0.07697079]
[1726500230970,4.25143797,2297.2,2296.9,4.35358]
[1726500231131,0.91377116,2297.0,2296.9,4.35358]
[1726500231332,1.95120991,2297.0,2296.9,4.35358]
[1726500232165,0.91377116,2297.1,2297.0,4.3535]
[1726500232366,1.9506776,2297.1,2297.0,4.3535]
[1726500232930,1.9506776,2297.1,2297.0,8.707]
[1726500233130,1.9506776,2297.1,2297.0,9.5777]
[1726500233430,0.9134438,2297.2,2297.1,4.35331]
[1726500233652,1.95022869,2297.2,2297.1,4.35331]
[1726500234070,1.95021489,2297.2,2297.1,4.35331]
[1726500234567,2.3797,2297.1,2296.6,2.3126]
[1726500234752,2.3797,2297.1,2297.0,4.35339]
[1726500234753,3.29281804,2297.1,2297.0,4.35339]
[1726500234954,4.32947747,2297.1,2297.0,4.35339]
[1726500235152,1.94977747,2297.1,2297.0,8.70689]
[1726500235361,0.91311804,2297.2,2297.1,4.35331]
[1726500235764,1.94958787,2297.2,2297.1,4.35331]
[1726500236839,1.03646983,2297.2,2297.1,0.07639008]
[1726500237090,1.94936957,2297.2,2297.1,4.42970008]
[1726500237252,2.40712657,2297.2,2297.1,4.42970008]
[1726500237436,1.94936698,2297.2,2297.1,0.07639008]
[1726500237878,1.94936698,2297.2,2297.1,4.42970008]
[1726500238261,1.94936698,2297.2,2297.1,0.07639008]
[1726500238586,0.91289715,2297.2,2297.1,0.07639008]
[1726500238739,2.12370387,2297.2,2297.1,0.07639008]
[1726500239051,3.16008098,2297.2,2297.1,0.07639008]
[1726500239671,2.40703385,2297.2,2297.1,4.42970008]
[1726500240086,1.03637711,2297.2,2297.1,4.42970008]
[1726500240288,0.91289458,2297.2,2297.1,4.42970008]
[1726500240596,1.94927169,2297.2,2297.1,4.42970008]
[1726500241078,1.94927169,2297.2,2297.1,0.07639008]
[1726500241493,0.91289458,2297.2,2297.1,0.07639008]
[1726500241648,1.94061958,2297.2,2297.1,0.07639008]
[1726500241848,2.97699669,2297.2,2297.1,0.07639008]
[1726500242049,2.9772515,2297.2,2297.1,0.07639008]
[1726500242503,2.4007104,2297.2,2297.1,0.07639008]
[1726500242660,4.81953472,2297.2,2296.9,4.35365]
[1726500242855,2.4007104,2297.2,2297.1,0.07639008]
[1726500243120,4.81961213,2297.2,2297.1,0.07639008]
[1726500243324,4.81961213,2297.2,2296.7,4.35392]
[1726500243325,2.40629871,2297.2,2296.7,4.35392]
[1726500243615,2.40629871,2297.2,2297.1,4.35331]
[1726500243616,0.91305386,2297.2,2297.1,4.35331]
[1726500243988,1.9495887,2297.2,2297.1,4.4297342]
[1726500244572,1.9495887,2297.2,2297.1,0.0764242]
[1726500244775,1.9495887,2297.2,2297.1,4.4297342]
[1726500246205,0.91305386,2297.3,2297.2,8.70624]
[1726500246526,1.36962654,2297.4,2297.3,13.05879]
[1726500246527,0.91305386,2297.4,2297.3,13.05879]
[1726500246674,0.91305386,2297.8,2297.6,6.63746]
[1726500246884,1.36962654,2297.9,2297.6,6.63746]
[1726500246885,0.91305386,2297.9,2297.8,4.35198]
[1726500247081,1.94919162,2297.9,2297.8,8.70396]
[1726500247332,0.91305386,2298.1,2298.0,8.70322]
[1726500247533,0.95136266,2298.2,2298.1,4.35142]
[1726500247829,0.95136266,2298.2,2298.1,4.42723177]
[1726500247830,1.97879777,2298.2,2298.1,4.42723177]
[1726500248527,0.0383088,2298.2,2298.1,4.42723177]
[1726500249217,0.0383088,2298.2,2298.1,22.29731647]
[1726500250228,0.0383088,2298.2,2298.1,18.38177177]
[1726500250431,0.0383088,2298.2,2298.1,14.03035177]
[1726500251137,0.0383088,2298.2,2298.1,4.42723177]
[1726500251295,0.0383088,2298.2,2298.1,0.07581177]
[1726500251639,0.0383088,2298.2,2298.1,4.42723177]
[1726500251798,0.0383088,2298.2,2298.1,0.07581177]
[1726500251999,0.0383088,2298.2,2298.1,4.42723177]
[1726500252496,0.0383088,2298.2,2298.1,0.07581177]
[1726500253217,0.0383088,2298.2,2298.1,9.65652795]
[1726500253533,0.0383088,2298.2,2298.1,19.47851647]
[1726500253720,0.0383088,2298.2,2298.1,22.47851647]
[1726500254120,0.0383088,2298.2,2298.1,11.21155177]
[1726500255446,0.0383088,2298.2,2298.1,18.12709647]
[1726500255597,0.0383088,2298.2,2298.1,24.29122612]
[1726500257034,0.0383088,2298.2,2298.1,16.02426142]
[1726500259295,0.0383088,2298.2,2298.1,0.07581177]
[1726500259598,0.0383088,2298.2,2298.1,4.42723177]
[1726500259939,0.0383088,2298.2,2298.1,0.07581177]
[1726500260439,0.0383088,2298.2,2298.1,4.42723177]
[1726500261345,0.0383088,2298.2,2298.1,0.07581177]
[1726500261704,0.0383088,2298.2,2298.0,4.35157]
[1726500262044,0.0383088,2298.2,2298.1,4.42523555]
[1726500262599,0.0383088,2298.2,2298.1,0.07381555]
[1726500262843,0.0383088,2298.2,2298.1,4.42523555]
[1726500264055,0.0383088,2298.2,2298.1,0.07381555]
[1726500265245,0.0383088,2298.2,2298.1,4.42523555]
[1726500266226,0.0383088,2298.2,2298.1,9.65432111]
[1726500266470,0.0383088,2298.2,2298.1,8.77665555]
[1726500266832,0.0383088,2298.2,2298.1,11.25815555]
[1726500268263,0.0383088,2298.2,2298.1,8.77665555]
[1726500268972,0.0383088,2298.2,2298.1,4.42523555]
[1726500269972,0.0383088,2298.2,2298.1,8.77665555]
[1726500270175,0.0383088,2298.2,2298.1,9.89871111]
[1726500273032,0.0383088,2298.2,2298.1,13.81425581]
[1726500279561,0.0383088,2298.2,2298.1,27.81539581]
[1726500280075,0.0383088,2298.2,2298.1,32.71681581]
[1726500281690,0.0383088,2298.9,2298.1,32.71681581]
[1726500281691,0.0383088,2298.9,2298.8,19.4531147]
[1726500282204,0.0383088,2298.9,2298.8,19.52675185]
[1726500287397,0.0383088,2298.9,2298.8,23.87684185]
[1726500287967,0.0383088,2298.9,2298.8,31.77693185]
[1726500290399,0.0383088,2298.9,2298.8,40.04256655]
[1726500290607,0.08,2299.5,2299.4,27.657]
[1726500290903,0.08,2299.5,2299.4,31.64445477]
[1726500292328,0.08,2299.5,2299.4,22.82995007]
[1726500292615,0.08,2299.5,2299.4,8.76983007]